Body Name,ONS SNAC ID,Pay Date,Transaction No,Amount �,Supplier Name,Company Registration No,Department,Account Name,CIPFA Service Reporting
Swale Borough Council,29UM,07/02/2018,1157024,292.50,2 - 3 DEGREES LTD,10532121                 ,TOURISM & SPORTS DEVELOPMENT,Fees and Services,Planning and Development Services
Swale Borough Council,29UM,07/02/2018,1156907,13253.77,APCOA PARKING (UK) LTD,2572947                  ,CAR PARKS,Private Contractors,Highway and Transport Services
Swale Borough Council,29UM,07/02/2018,1156907,19880.67,APCOA PARKING (UK) LTD,2572947                  ,CAR PARKS,Private Contractors,Highway and Transport Services
Swale Borough Council,29UM,07/02/2018,1156901,846.31,BLENWOOD LTD,4383277                  ,LEISURE & OPEN SPACES,Construction,Not used in this Structure
Swale Borough Council,29UM,07/02/2018,1156902,273.26,BLENWOOD LTD,4383277                  ,LEISURE & OPEN SPACES,Nursery Stock,Environmental and Regulatory Services
Swale Borough Council,29UM,07/02/2018,1156903,460.52,BLENWOOD LTD,4383277                  ,LEISURE & OPEN SPACES,Nursery Stock,Cultural and Related Services
Swale Borough Council,29UM,07/02/2018,1156905,454.53,BLENWOOD LTD,4383277                  ,LEISURE & OPEN SPACES,Maintenance - Grounds,Environmental and Regulatory Services
Swale Borough Council,29UM,07/02/2018,1156917,3200.69,BLENWOOD LTD,4383277                  ,LEISURE & OPEN SPACES,Grounds Maint Suspense,Cultural and Related Services
Swale Borough Council,29UM,07/02/2018,1156919,1485.64,BLENWOOD LTD,4383277                  ,LEISURE & OPEN SPACES,Grounds Contract Variations,Cultural and Related Services
Swale Borough Council,29UM,07/02/2018,1156913,3500.00,BLOOM PROCUREMENT SERVICES LTD,08045123                 ,PROPERTY SERVICES,Consultancy/Specialist Advice,Internal Trading Cost Centres
Swale Borough Council,29UM,07/02/2018,1157018,5000.00,CANTERBURY CHRIST CHURCH UNIVERSITY,                         ,TOURISM & SPORTS DEVELOPMENT,Grants & Subscriptions,Cultural and Related Services
Swale Borough Council,29UM,07/02/2018,1156921,3580.00,CIPFA BUSINESS LTD,2376684                  ,FINANCIAL SERVICES,Payments in Year,Ledger/Suspense Codes
Swale Borough Council,29UM,07/02/2018,1156961,2825.00,CIPFA BUSINESS LTD,2376684                  ,FINANCIAL SERVICES,Payments in Year,Ledger/Suspense Codes
Swale Borough Council,29UM,07/02/2018,1156997,2300.00,CLARKES SPORTS STUDIO,                         ,LEISURE & OPEN SPACES,Contract Cleaning,Cultural and Related Services
Swale Borough Council,29UM,07/02/2018,1156864,305.15,CONTRACT SECURITY SERVICES,2461362                  ,EXCHEQUER,Cash Security,Internal Trading Cost Centres
Swale Borough Council,29UM,07/02/2018,1156864,4368.00,CONTRACT SECURITY SERVICES,2461362                  ,CAR PARKS,Cash Security,Highway and Transport Services
Swale Borough Council,29UM,07/02/2018,1157044,1149.00,DISCLOSURE & BARRING SERVICE (DT),                         ,LICENCING,Fees and Services,Environmental and Regulatory Services
Swale Borough Council,29UM,07/02/2018,1157056,1430.00,HMCTS (DT),                         ,REVENUE SERVICES,Court Costs,Central Services to the Public
Swale Borough Council,29UM,07/02/2018,1156916,288.34,KERRY SCS LIMITED,6059349                  ,PROPERTY SERVICES,Service Contracts,Corporate & Democratic Core
Swale Borough Council,29UM,07/02/2018,1157086,3500.00,LANDMARK CHAMBERS,                         ,PLANNING SERVICES,Legal Fees,Planning and Development Services
Swale Borough Council,29UM,07/02/2018,1156987,11667.76,MATRIX SCM LTD,2227962                  ,HUMAN RESOURCES,Agency/Contract Staff,Internal Trading Cost Centres
Swale Borough Council,29UM,07/02/2018,1156996,655.00,METRIC GROUP LTD,2560839                  ,CAR PARKS,Fees - Licence,Highway and Transport Services
Swale Borough Council,29UM,07/02/2018,1157090,825.00,REDACTED PERSONAL INFORMATION,                         ,HOUSING SERVICES,Rent Deposit Scheme - Landlord Payments,Housing
Swale Borough Council,29UM,07/02/2018,1157106,330.00,MUSEUM OF LONDON,1139250                  ,TOURISM & SPORTS DEVELOPMENT,Conference,Internal Trading Cost Centres
Swale Borough Council,29UM,07/02/2018,1157106,32.70,MUSEUM OF LONDON,1139250                  ,TOURISM & SPORTS DEVELOPMENT,Conference,Internal Trading Cost Centres
Swale Borough Council,29UM,07/02/2018,1156998,358.40,NORFOLK COUNTY COUNCIL,                         ,PLANNING SERVICES,Regeneration Fund Expenditure,Ledger/Suspense Codes
Swale Borough Council,29UM,07/02/2018,1156872,339.67,NORTHSHORE DESIGNS LIMITED,                         ,ENVIRONMENTAL RESPONSE TEAM,Protective Clothing,Internal Trading Cost Centres
Swale Borough Council,29UM,07/02/2018,1156747,7.00,O2 (UK) LTD,1743099                  ,COMMUNITY SAFETY,Cellphone,Planning and Development Services
Swale Borough Council,29UM,07/02/2018,1156747,54.27,O2 (UK) LTD,1743099                  ,COMMUNITY SAFETY,Cellphone,Environmental and Regulatory Services
Swale Borough Council,29UM,07/02/2018,1156747,9.50,O2 (UK) LTD,1743099                  ,TRANSFORMATION PROJECT,Cellphone,Corporate & Democratic Core
Swale Borough Council,29UM,07/02/2018,1156747,13.13,O2 (UK) LTD,1743099                  ,PLANNING SERVICES,Cellphone,Planning and Development Services
Swale Borough Council,29UM,07/02/2018,1156747,6.10,O2 (UK) LTD,1743099                  ,PLANNING SERVICES,Cellphone,Planning and Development Services
Swale Borough Council,29UM,07/02/2018,1156747,18.01,O2 (UK) LTD,1743099                  ,ECONOMIC DEVELOPMENT,Cellphone,Planning and Development Services
Swale Borough Council,29UM,07/02/2018,1156747,19.50,O2 (UK) LTD,1743099                  ,EMERGENCY PLANNING,Cellphone,Central Services to the Public
Swale Borough Council,29UM,07/02/2018,1156747,25.80,O2 (UK) LTD,1743099                  ,SERVICE DELIVERY,Cellphone,Cultural and Related Services
Swale Borough Council,29UM,07/02/2018,1156747,40.00,O2 (UK) LTD,1743099                  ,HOUSING SERVICES,Cellphone,Housing
Swale Borough Council,29UM,07/02/2018,1156747,54.97,O2 (UK) LTD,1743099                  ,REVENUE SERVICES,Cellphone,Housing
Swale Borough Council,29UM,07/02/2018,1156747,7.00,O2 (UK) LTD,1743099                  ,DEMOCRATIC & ELECTORAL SERVICES,Cellphone,Internal Trading Cost Centres
Swale Borough Council,29UM,07/02/2018,1156747,19.00,O2 (UK) LTD,1743099                  ,LICENCING,Cellphone,Internal Trading Cost Centres
Swale Borough Council,29UM,07/02/2018,1156747,76.25,O2 (UK) LTD,1743099                  ,PROPERTY SERVICES,Cellphone,Internal Trading Cost Centres
Swale Borough Council,29UM,07/02/2018,1156747,7.00,O2 (UK) LTD,1743099                  ,ECONOMY & COMMUNITIES,Cellphone,Internal Trading Cost Centres
Swale Borough Council,29UM,07/02/2018,1156747,19.00,O2 (UK) LTD,1743099                  ,TOURISM & SPORTS DEVELOPMENT,Cellphone,Internal Trading Cost Centres
Swale Borough Council,29UM,07/02/2018,1156747,30.52,O2 (UK) LTD,1743099                  ,ECONOMIC DEVELOPMENT,Cellphone,Internal Trading Cost Centres
Swale Borough Council,29UM,07/02/2018,1156747,18.50,O2 (UK) LTD,1743099                  ,SERVICE DELIVERY,Cellphone,Internal Trading Cost Centres
Swale Borough Council,29UM,07/02/2018,1156747,136.50,O2 (UK) LTD,1743099                  ,CONTRACT & PROCUREMENT,Cellphone,Internal Trading Cost Centres
Swale Borough Council,29UM,07/02/2018,1156747,49.61,O2 (UK) LTD,1743099                  ,MKS ENVIRONMENTAL SERVICES,Cellphone,Internal Trading Cost Centres
Swale Borough Council,29UM,07/02/2018,1156747,37.81,O2 (UK) LTD,1743099                  ,MKS ENVIRONMENTAL SERVICES,Cellphone,Internal Trading Cost Centres
Swale Borough Council,29UM,07/02/2018,1156747,83.58,O2 (UK) LTD,1743099                  ,ENVIRONMENTAL RESPONSE TEAM,Cellphone,Internal Trading Cost Centres
Swale Borough Council,29UM,07/02/2018,1156747,13.29,O2 (UK) LTD,1743099                  ,PLANNING SERVICES,Cellphone,Internal Trading Cost Centres
Swale Borough Council,29UM,07/02/2018,1156747,74.87,O2 (UK) LTD,1743099                  ,LEISURE & OPEN SPACES,Cellphone,Internal Trading Cost Centres
Swale Borough Council,29UM,07/02/2018,1156747,19.50,O2 (UK) LTD,1743099                  ,CHIEF EXECUTIVE,Cellphone,Internal Trading Cost Centres
Swale Borough Council,29UM,07/02/2018,1156747,9.50,O2 (UK) LTD,1743099                  ,DIRECTOR OF REGENERATION,Cellphone,Internal Trading Cost Centres
Swale Borough Council,29UM,07/02/2018,1156747,21.00,O2 (UK) LTD,1743099                  ,COMMISSIONING & CUSTOMER CONTACT,Cellphone,Internal Trading Cost Centres
Swale Borough Council,29UM,07/02/2018,1156747,7.02,O2 (UK) LTD,1743099                  ,COMMISSIONING & CUSTOMER CONTACT,Cellphone,Internal Trading Cost Centres
Swale Borough Council,29UM,07/02/2018,1156747,7.00,O2 (UK) LTD,1743099                  ,POLICY,Cellphone,Internal Trading Cost Centres
Swale Borough Council,29UM,07/02/2018,1156747,17.85,O2 (UK) LTD,1743099                  ,COMMUNICATIONS,Cellphone,Internal Trading Cost Centres
Swale Borough Council,29UM,07/02/2018,1156747,38.50,O2 (UK) LTD,1743099                  ,ENVIRONMENTAL RESPONSE TEAM,Cellphone,Internal Trading Cost Centres
Swale Borough Council,29UM,07/02/2018,1156747,52.72,O2 (UK) LTD,1743099                  ,MKS LEGAL SERVICES,Cellphone,Internal Trading Cost Centres
Swale Borough Council,29UM,07/02/2018,1156747,7.00,O2 (UK) LTD,1743099                  ,TOURISM & SPORTS DEVELOPMENT,Cellphone,Internal Trading Cost Centres
Swale Borough Council,29UM,07/02/2018,1156747,2.00,O2 (UK) LTD,1743099                  ,HOUSING SERVICES,Cellphone,Housing
Swale Borough Council,29UM,07/02/2018,1156747,31.00,O2 (UK) LTD,1743099                  ,HOUSING SERVICES,Cellphone,Housing
Swale Borough Council,29UM,07/02/2018,1156747,30.16,O2 (UK) LTD,1743099                  ,ENVIRONMENTAL RESPONSE TEAM,Cellphone,Environmental and Regulatory Services
Swale Borough Council,29UM,07/02/2018,1156747,8.07,O2 (UK) LTD,1743099                  ,TOURISM & SPORTS DEVELOPMENT,Cellphone,Cultural and Related Services
Swale Borough Council,29UM,07/02/2018,1156747,40.00,O2 (UK) LTD,1743099                  ,HOUSING SERVICES,Cellphone,Housing
Swale Borough Council,29UM,07/02/2018,1156748,7.00,O2 (UK) LTD,1743099                  ,COMMUNITY SAFETY,Cellphone,Planning and Development Services
Swale Borough Council,29UM,07/02/2018,1156748,48.56,O2 (UK) LTD,1743099                  ,COMMUNITY SAFETY,Cellphone,Environmental and Regulatory Services
Swale Borough Council,29UM,07/02/2018,1156748,9.50,O2 (UK) LTD,1743099                  ,TRANSFORMATION PROJECT,Cellphone,Corporate & Democratic Core
Swale Borough Council,29UM,07/02/2018,1156748,12.00,O2 (UK) LTD,1743099                  ,PLANNING SERVICES,Cellphone,Planning and Development Services
Swale Borough Council,29UM,07/02/2018,1156748,6.00,O2 (UK) LTD,1743099                  ,PLANNING SERVICES,Cellphone,Planning and Development Services
Swale Borough Council,29UM,07/02/2018,1156748,18.01,O2 (UK) LTD,1743099                  ,ECONOMIC DEVELOPMENT,Cellphone,Planning and Development Services
Swale Borough Council,29UM,07/02/2018,1156748,19.50,O2 (UK) LTD,1743099                  ,EMERGENCY PLANNING,Cellphone,Central Services to the Public
Swale Borough Council,29UM,07/02/2018,1156748,28.80,O2 (UK) LTD,1743099                  ,SERVICE DELIVERY,Cellphone,Cultural and Related Services
Swale Borough Council,29UM,07/02/2018,1156748,40.00,O2 (UK) LTD,1743099                  ,HOUSING SERVICES,Cellphone,Housing
Swale Borough Council,29UM,07/02/2018,1156748,14.00,O2 (UK) LTD,1743099                  ,REVENUE SERVICES,Cellphone,Housing
Swale Borough Council,29UM,07/02/2018,1156748,7.00,O2 (UK) LTD,1743099                  ,DEMOCRATIC & ELECTORAL SERVICES,Cellphone,Internal Trading Cost Centres
Swale Borough Council,29UM,07/02/2018,1156748,28.44,O2 (UK) LTD,1743099                  ,ECONOMIC DEVELOPMENT,Cellphone,Internal Trading Cost Centres
Swale Borough Council,29UM,07/02/2018,1156748,19.00,O2 (UK) LTD,1743099                  ,LICENCING,Cellphone,Internal Trading Cost Centres
Swale Borough Council,29UM,07/02/2018,1156748,77.31,O2 (UK) LTD,1743099                  ,PROPERTY SERVICES,Cellphone,Internal Trading Cost Centres
Swale Borough Council,29UM,07/02/2018,1156748,7.00,O2 (UK) LTD,1743099                  ,ECONOMY & COMMUNITIES,Cellphone,Internal Trading Cost Centres
Swale Borough Council,29UM,07/02/2018,1156748,19.00,O2 (UK) LTD,1743099                  ,TOURISM & SPORTS DEVELOPMENT,Cellphone,Internal Trading Cost Centres
Swale Borough Council,29UM,07/02/2018,1156748,2.12,O2 (UK) LTD,1743099                  ,ECONOMIC DEVELOPMENT,Cellphone,Internal Trading Cost Centres
Swale Borough Council,29UM,07/02/2018,1156748,18.56,O2 (UK) LTD,1743099                  ,SERVICE DELIVERY,Cellphone,Internal Trading Cost Centres
Swale Borough Council,29UM,07/02/2018,1156748,136.50,O2 (UK) LTD,1743099                  ,CONTRACT & PROCUREMENT,Cellphone,Internal Trading Cost Centres
Swale Borough Council,29UM,07/02/2018,1156748,51.00,O2 (UK) LTD,1743099                  ,MKS ENVIRONMENTAL SERVICES,Cellphone,Internal Trading Cost Centres
Swale Borough Council,29UM,07/02/2018,1156748,45.00,O2 (UK) LTD,1743099                  ,MKS ENVIRONMENTAL SERVICES,Cellphone,Internal Trading Cost Centres
Swale Borough Council,29UM,07/02/2018,1156748,80.00,O2 (UK) LTD,1743099                  ,ENVIRONMENTAL RESPONSE TEAM,Cellphone,Internal Trading Cost Centres
Swale Borough Council,29UM,07/02/2018,1156748,10.46,O2 (UK) LTD,1743099                  ,PLANNING SERVICES,Cellphone,Internal Trading Cost Centres
Swale Borough Council,29UM,07/02/2018,1156748,75.58,O2 (UK) LTD,1743099                  ,LEISURE & OPEN SPACES,Cellphone,Internal Trading Cost Centres
Swale Borough Council,29UM,07/02/2018,1156748,19.50,O2 (UK) LTD,1743099                  ,CHIEF EXECUTIVE,Cellphone,Internal Trading Cost Centres
Swale Borough Council,29UM,07/02/2018,1156748,9.50,O2 (UK) LTD,1743099                  ,DIRECTOR OF REGENERATION,Cellphone,Internal Trading Cost Centres
Swale Borough Council,29UM,07/02/2018,1156748,21.00,O2 (UK) LTD,1743099                  ,COMMISSIONING & CUSTOMER CONTACT,Cellphone,Internal Trading Cost Centres
Swale Borough Council,29UM,07/02/2018,1156748,7.35,O2 (UK) LTD,1743099                  ,COMMISSIONING & CUSTOMER CONTACT,Cellphone,Internal Trading Cost Centres
Swale Borough Council,29UM,07/02/2018,1156748,7.23,O2 (UK) LTD,1743099                  ,POLICY,Cellphone,Internal Trading Cost Centres
Swale Borough Council,29UM,07/02/2018,1156748,32.45,O2 (UK) LTD,1743099                  ,COMMUNICATIONS,Cellphone,Internal Trading Cost Centres
Swale Borough Council,29UM,07/02/2018,1156748,38.00,O2 (UK) LTD,1743099                  ,ENVIRONMENTAL RESPONSE TEAM,Cellphone,Internal Trading Cost Centres
Swale Borough Council,29UM,07/02/2018,1156748,58.64,O2 (UK) LTD,1743099                  ,MKS LEGAL SERVICES,Cellphone,Internal Trading Cost Centres
Swale Borough Council,29UM,07/02/2018,1156748,7.00,O2 (UK) LTD,1743099                  ,TOURISM & SPORTS DEVELOPMENT,Cellphone,Internal Trading Cost Centres
Swale Borough Council,29UM,07/02/2018,1156748,2.00,O2 (UK) LTD,1743099                  ,HOUSING SERVICES,Cellphone,Housing
Swale Borough Council,29UM,07/02/2018,1156748,29.00,O2 (UK) LTD,1743099                  ,HOUSING SERVICES,Cellphone,Housing
Swale Borough Council,29UM,07/02/2018,1156748,26.86,O2 (UK) LTD,1743099                  ,ENVIRONMENTAL RESPONSE TEAM,Cellphone,Environmental and Regulatory Services
Swale Borough Council,29UM,07/02/2018,1156748,7.40,O2 (UK) LTD,1743099                  ,TOURISM & SPORTS DEVELOPMENT,Cellphone,Cultural and Related Services
Swale Borough Council,29UM,07/02/2018,1156748,40.00,O2 (UK) LTD,1743099                  ,HOUSING SERVICES,Cellphone,Housing
Swale Borough Council,29UM,07/02/2018,1156958,6514.75,PLAYDALE PLAYGROUNDS LTD,00525615                 ,LEISURE & OPEN SPACES,Construction,Not used in this Structure
Swale Borough Council,29UM,07/02/2018,1157076,290.33,PORTAKABIN LIMITED,685303                   ,LEISURE & OPEN SPACES,Maintenance - Grounds,Environmental and Regulatory Services
Swale Borough Council,29UM,07/02/2018,1157098,19500.00,PROLUDIC LTD,04455803                 ,LEISURE & OPEN SPACES,Construction,Not used in this Structure
Swale Borough Council,29UM,07/02/2018,1156962,700.52,ROYAL MAIL GROUP LTD,4138203                  ,DEMOCRATIC & ELECTORAL SERVICES,Postage,Internal Trading Cost Centres
Swale Borough Council,29UM,07/02/2018,1157019,827.40,RSP RAIL TRAVEL ACCOUNT - (DT),                         ,FINANCIAL SERVICES,Travel Warrants (Staff Travel),Internal Trading Cost Centres
Swale Borough Council,29UM,07/02/2018,1157010,375.00,RURAL PLANNING LTD,4426249                  ,PLANNING SERVICES,Fees and Services,Planning and Development Services
Swale Borough Council,29UM,07/02/2018,1156945,1000.00,SHARPE PRITCHARD,OC378650                 ,PLANNING SERVICES,Legal Fees,Planning and Development Services
Swale Borough Council,29UM,07/02/2018,1156945,583.00,SHARPE PRITCHARD,OC378650                 ,PLANNING SERVICES,Legal Fees,Planning and Development Services
Swale Borough Council,29UM,07/02/2018,1156849,912.00,THE OYSTER PARTNERSHIP,05020374                 ,PLANNING SERVICES,Agency/Contract Staff,Planning and Development Services
Swale Borough Council,29UM,07/02/2018,1156995,1368.00,THE OYSTER PARTNERSHIP,05020374                 ,PLANNING SERVICES,Agency/Contract Staff,Planning and Development Services
Swale Borough Council,29UM,07/02/2018,1156876,265.00,THREE TOWNS OFFICE EQUIPMENT LTD,                         ,ENVIRONMENTAL RESPONSE TEAM,Furniture,Internal Trading Cost Centres
Swale Borough Council,29UM,07/02/2018,1156878,430.00,TIME ASSURED LIMITED,7483197                  ,PROPERTY SERVICES,Non-Planned Building Maintenance,Cultural and Related Services
Swale Borough Council,29UM,07/02/2018,1156785,-32.87,UNISON,                         ,HUMAN RESOURCES,Payroll - Unison Deductions Admin Charge,Corporate & Democratic Core
Swale Borough Council,29UM,07/02/2018,1156887,415.30,WESTBURY SIGNS LTD,6523147                  ,ENVIRONMENTAL RESPONSE TEAM,Signage - External Funded by Grant & Other Income,Internal Trading Cost Centres
Swale Borough Council,29UM,07/02/2018,1156984,27349.93,WYNNE-WILLIAMS ASSOCIATES LTD,5148770                  ,LEISURE & OPEN SPACES,Capitalised Fees And Charges,Not used in this Structure
Swale Borough Council,29UM,14/02/2018,1157048,538.00,A T BLINDS,                         ,PROPERTY SERVICES,Buildings Maintenance,Corporate & Democratic Core
Swale Borough Council,29UM,14/02/2018,1157271,5732.00,ACORN MAINTENANCE SERVICES,3546898                  ,HOUSING SERVICES,Housing Renovation Grants,Not used in this Structure
Swale Borough Council,29UM,14/02/2018,1157110,5312.50,ADELANTE SOFTWARE LTD,4450760                  ,FINANCIAL SERVICES,Computer Equipment,Not used in this Structure
Swale Borough Council,29UM,14/02/2018,1157184,1000.00,ADHD SHEPPEY,                         ,ECONOMY & COMMUNITIES,Grants & Subscriptions,Central Services to the Public
Swale Borough Council,29UM,14/02/2018,1157064,43.70,ALLPAY LTD,02933191                 ,REVENUE SERVICES,Bank Charges Pay Point,Central Services to the Public
Swale Borough Council,29UM,14/02/2018,1157064,1976.38,ALLPAY LTD,02933191                 ,REVENUE SERVICES,Bank Charges Pay Point,Central Services to the Public
Swale Borough Council,29UM,14/02/2018,1157064,2.29,ALLPAY LTD,02933191                 ,REVENUE SERVICES,Bank Charges Pay Point,Housing
Swale Borough Council,29UM,14/02/2018,1157064,52.03,ALLPAY LTD,02933191                 ,REVENUE SERVICES,Bank Charges Pay Point,Housing
Swale Borough Council,29UM,14/02/2018,1157064,52.00,ALLPAY LTD,02933191                 ,EXCHEQUER,Bank Charges Pay Point,Internal Trading Cost Centres
Swale Borough Council,29UM,14/02/2018,1157162,43.70,ALLPAY LTD,02933191                 ,REVENUE SERVICES,Bank Charges Pay Point,Central Services to the Public
Swale Borough Council,29UM,14/02/2018,1157162,2441.50,ALLPAY LTD,02933191                 ,REVENUE SERVICES,Bank Charges Pay Point,Central Services to the Public
Swale Borough Council,29UM,14/02/2018,1157162,2.30,ALLPAY LTD,02933191                 ,REVENUE SERVICES,Bank Charges Pay Point,Housing
Swale Borough Council,29UM,14/02/2018,1157162,64.25,ALLPAY LTD,02933191                 ,REVENUE SERVICES,Bank Charges Pay Point,Housing
Swale Borough Council,29UM,14/02/2018,1157162,64.95,ALLPAY LTD,02933191                 ,EXCHEQUER,Bank Charges Pay Point,Internal Trading Cost Centres
Swale Borough Council,29UM,14/02/2018,1157020,86.32,ALLSTAR BUSINESS SOLUTIONS LTD - (DT),1073098                  ,SERVICE DELIVERY,Petrol/Derv & Oil,Cultural and Related Services
Swale Borough Council,29UM,14/02/2018,1157020,103.33,ALLSTAR BUSINESS SOLUTIONS LTD - (DT),1073098                  ,ENVIRONMENTAL RESPONSE TEAM,Fuel For Contract Vehicles,Internal Trading Cost Centres
Swale Borough Council,29UM,14/02/2018,1157020,74.94,ALLSTAR BUSINESS SOLUTIONS LTD - (DT),1073098                  ,LEISURE & OPEN SPACES,Fuel For Contract Vehicles,Cultural and Related Services
Swale Borough Council,29UM,14/02/2018,1157020,52.48,ALLSTAR BUSINESS SOLUTIONS LTD - (DT),1073098                  ,ENVIRONMENTAL RESPONSE TEAM,Fuel For Contract Vehicles,Environmental and Regulatory Services
Swale Borough Council,29UM,14/02/2018,1157272,2011.50,ASCENDIT LIFTS LTD,3493530                  ,HOUSING SERVICES,Housing Renovation Grants,Not used in this Structure
Swale Borough Council,29UM,14/02/2018,1157273,2150.00,ASCENDIT LIFTS LTD,3493530                  ,HOUSING SERVICES,Housing Renovation Grants,Not used in this Structure
Swale Borough Council,29UM,14/02/2018,1156918,99465.28,BLENWOOD LTD,4383277                  ,LEISURE & OPEN SPACES,Grounds Maint Suspense,Cultural and Related Services
Swale Borough Council,29UM,14/02/2018,1157071,720.00,BLENWOOD LTD,4383277                  ,LEISURE & OPEN SPACES,Construction,Not used in this Structure
Swale Borough Council,29UM,14/02/2018,1157072,1719.15,BLENWOOD LTD,4383277                  ,LEISURE & OPEN SPACES,Tree Maintenance,Cultural and Related Services
Swale Borough Council,29UM,14/02/2018,1157143,1939.04,BLENWOOD LTD,4383277                  ,LEISURE & OPEN SPACES,Capitalised Fees And Charges,Not used in this Structure
Swale Borough Council,29UM,14/02/2018,1157151,2178.95,BLOOM PROCUREMENT SERVICES LTD,08045123                 ,PLANNING SERVICES,Fees and Services,Planning and Development Services
Swale Borough Council,29UM,14/02/2018,1157152,4815.69,BLOOM PROCUREMENT SERVICES LTD,08045123                 ,PLANNING SERVICES,Fees and Services,Planning and Development Services
Swale Borough Council,29UM,14/02/2018,1157153,779.24,BLOOM PROCUREMENT SERVICES LTD,08045123                 ,PLANNING SERVICES,Fees and Services,Planning and Development Services
Swale Borough Council,29UM,14/02/2018,1157078,4732.85,BT REDCARE,1800000                  ,COMMUNITY SAFETY,CCTV Line Rental,Environmental and Regulatory Services
Swale Borough Council,29UM,14/02/2018,1157117,300.00,BUDDIES DAY SERVICE,                         ,ECONOMY & COMMUNITIES,Grants & Subscriptions,Central Services to the Public
Swale Borough Council,29UM,14/02/2018,1157186,3333.33,CHALKWELL COACH HIRE LTD,2520842                  ,PLANNING SERVICES,Payments in Year,Ledger/Suspense Codes
Swale Borough Council,29UM,14/02/2018,1156947,400.00,CHILDREN AND FAMILIES LTD,                         ,ECONOMY & COMMUNITIES,Grants & Subscriptions,Central Services to the Public
Swale Borough Council,29UM,14/02/2018,1157123,1000.00,CHILDREN AND FAMILIES LTD,                         ,ECONOMY & COMMUNITIES,Grants & Subscriptions,Central Services to the Public
Swale Borough Council,29UM,14/02/2018,1157200,2228.33,CHILDREN AND FAMILIES LTD,                         ,COMMUNITY SAFETY,Fees and Services,Planning and Development Services
Swale Borough Council,29UM,14/02/2018,1157201,2228.33,CHILDREN AND FAMILIES LTD,                         ,COMMUNITY SAFETY,Fees and Services,Planning and Development Services
Swale Borough Council,29UM,14/02/2018,1157202,2228.33,CHILDREN AND FAMILIES LTD,                         ,COMMUNITY SAFETY,Fees and Services,Planning and Development Services
Swale Borough Council,29UM,14/02/2018,1157203,2228.33,CHILDREN AND FAMILIES LTD,                         ,COMMUNITY SAFETY,Fees and Services,Planning and Development Services
Swale Borough Council,29UM,14/02/2018,1157079,5910.00,CIPFA BUSINESS LTD,2376684                  ,FINANCIAL SERVICES,Payments in Year,Ledger/Suspense Codes
Swale Borough Council,29UM,14/02/2018,1156942,33357.50,CITIZENS ADVICE BUREAU IN SWALE,5052691                  ,TOURISM & SPORTS DEVELOPMENT,Voluntary Organisations Grants,Central Services to the Public
Swale Borough Council,29UM,14/02/2018,1157097,665.00,CLEAR CHANNEL UK LTD,                         ,ENVIRONMENTAL RESPONSE TEAM,Advertising & Promo - Ext Fund by Grant & Other Income,Planning and Development Services
Swale Borough Council,29UM,14/02/2018,1156704,2000.00,DOVER DISTRICT COUNCIL,                         ,HOUSING SERVICES,Computer Equipment & Materials,Housing
Swale Borough Council,29UM,14/02/2018,1157013,1200.00,EASTCHURCH PARISH COUNCIL,                         ,ECONOMY & COMMUNITIES,Grants & Subscriptions,Central Services to the Public
Swale Borough Council,29UM,14/02/2018,1157015,550.00,FAV. COMM. CHRISTMAS LIGHTS COMM.,                         ,ECONOMY & COMMUNITIES,Grants & Subscriptions,Central Services to the Public
Swale Borough Council,29UM,14/02/2018,1157196,750.00,FAVERSHAM TOWN COUNCIL,                         ,TOURISM & SPORTS DEVELOPMENT,Grants & Subscriptions,Cultural and Related Services
Swale Borough Council,29UM,14/02/2018,1157188,549.17,FAVERSHAM TROPHIES,                         ,CHIEF EXECUTIVE,Prizes/Awards,Public Health
Swale Borough Council,29UM,14/02/2018,1157063,484.24,GLASDON U.K.LIMITED,2160576                  ,LEISURE & OPEN SPACES,Equipment Purchase,Cultural and Related Services
Swale Borough Council,29UM,14/02/2018,1157270,2316.98,HIGHER ELEVATION LTD,                         ,HOUSING SERVICES,Housing Renovation Grants,Not used in this Structure
Swale Borough Council,29UM,14/02/2018,1157274,5085.00,HUBBARD & HOUGHTON CONSTRUCTION LTD,                         ,HOUSING SERVICES,Housing Renovation Grants,Not used in this Structure
Swale Borough Council,29UM,14/02/2018,1157275,250.00,HUBBARD & HOUGHTON LTD,                         ,HOUSING SERVICES,Housing Renovation Grants,Not used in this Structure
Swale Borough Council,29UM,14/02/2018,1157006,575.88,INSIGHT DIRECT (UK) LTD,2579852                  ,MKS ICT,Payments in Year,Ledger/Suspense Codes
Swale Borough Council,29UM,14/02/2018,1157007,770.80,INSIGHT DIRECT (UK) LTD,2579852                  ,MKS ICT,Payments in Year,Ledger/Suspense Codes
Swale Borough Council,29UM,14/02/2018,1157008,9449.70,INSIGHT DIRECT (UK) LTD,2579852                  ,MKS ICT,Payments in Year,Ledger/Suspense Codes
Swale Borough Council,29UM,14/02/2018,1157255,1782.66,KAREBEAR KENNELS LTD,                         ,ENVIRONMENTAL RESPONSE TEAM,Fees and Services,Environmental and Regulatory Services
Swale Borough Council,29UM,14/02/2018,1157255,-207.00,KAREBEAR KENNELS LTD,                         ,ENVIRONMENTAL RESPONSE TEAM,Income collected by Dog Kennels,Environmental and Regulatory Services
Swale Borough Council,29UM,14/02/2018,1157068,5131.35,KINGDOM SECURITY LIMITED,2795197                  ,ENVIRONMENTAL RESPONSE TEAM,Fees and Services,Planning and Development Services
Swale Borough Council,29UM,14/02/2018,1157103,300.00,LEMAR LIMITED,04350292                 ,TOURISM & SPORTS DEVELOPMENT,Private Contractors - CIS,Trading Undertaking
Swale Borough Council,29UM,14/02/2018,1157103,260.00,LEMAR LIMITED,04350292                 ,TOURISM & SPORTS DEVELOPMENT,Private Contractors - CIS,Trading Undertaking
Swale Borough Council,29UM,14/02/2018,1157104,600.00,LEMAR LIMITED,04350292                 ,TOURISM & SPORTS DEVELOPMENT,Private Contractors - CIS,Trading Undertaking
Swale Borough Council,29UM,14/02/2018,1157104,715.00,LEMAR LIMITED,04350292                 ,TOURISM & SPORTS DEVELOPMENT,Private Contractors - CIS,Trading Undertaking
Swale Borough Council,29UM,14/02/2018,1157054,2205.00,LUSHLAND,4289261                  ,PLANNING SERVICES,Fees and Services,Planning and Development Services
Swale Borough Council,29UM,14/02/2018,1157074,360.00,MAYLOW CONSTRUCTION LTD,                         ,LEISURE & OPEN SPACES,Maintenance - Grounds,Environmental and Regulatory Services
Swale Borough Council,29UM,14/02/2018,1157080,229.00,MAYLOW CONSTRUCTION LTD,                         ,LEISURE & OPEN SPACES,Maintenance - Grounds,Environmental and Regulatory Services
Swale Borough Council,29UM,14/02/2018,1157080,137.00,MAYLOW CONSTRUCTION LTD,                         ,LEISURE & OPEN SPACES,Maintenance - Grounds,Environmental and Regulatory Services
Swale Borough Council,29UM,14/02/2018,1157080,534.00,MAYLOW CONSTRUCTION LTD,                         ,LEISURE & OPEN SPACES,Maintenance - Grounds,Environmental and Regulatory Services
Swale Borough Council,29UM,14/02/2018,1157081,2195.00,MAYLOW CONSTRUCTION LTD,                         ,LEISURE & OPEN SPACES,Maintenance - Grounds,Cultural and Related Services
Swale Borough Council,29UM,14/02/2018,1157082,1064.00,MAYLOW CONSTRUCTION LTD,                         ,LEISURE & OPEN SPACES,Construction,Not used in this Structure
Swale Borough Council,29UM,14/02/2018,1157127,-1100.00,MEDWAY PUBLIC SERVICES LTD,10041989                 ,COMMUNITY SAFETY,CCTV Monitoring Service,Environmental and Regulatory Services
Swale Borough Council,29UM,14/02/2018,1157128,2243.85,MEDWAY PUBLIC SERVICES LTD,10041989                 ,COMMUNITY SAFETY,CCTV Monitoring Service,Environmental and Regulatory Services
Swale Borough Council,29UM,14/02/2018,1157088,17434.56,MONITOR CLEANING SERVICES LTD,02526388                 ,CONTRACT & PROCUREMENT,Private Contractors,Environmental and Regulatory Services
Swale Borough Council,29UM,14/02/2018,1157100,500.00,REDACTED PERSONAL INFORMATION,                         ,ENVIRONMENTAL RESPONSE TEAM,Legal Fees,Planning and Development Services
Swale Borough Council,29UM,14/02/2018,1157100,100.00,REDACTED PERSONAL INFORMATION,                         ,ENVIRONMENTAL RESPONSE TEAM,Legal Fees,Planning and Development Services
Swale Borough Council,29UM,14/02/2018,1156879,1042.88,NEOPOST LIMITED,                         ,REVENUE SERVICES,Computer Equipment & Materials,Central Services to the Public
Swale Borough Council,29UM,14/02/2018,1156879,1042.87,NEOPOST LIMITED,                         ,REVENUE SERVICES,Computer Equipment & Materials,Housing
Swale Borough Council,29UM,14/02/2018,1157124,400.00,NEWINGTON PARISH COUNCIL,                         ,ECONOMY & COMMUNITIES,Grants & Subscriptions,Central Services to the Public
Swale Borough Council,29UM,14/02/2018,1157179,276.62,NPOWER,                         ,LEISURE & OPEN SPACES,Electricity,Cultural and Related Services
Swale Borough Council,29UM,14/02/2018,1156932,870.00,OASIS ACADEMY ISLE OF SHEPPEY,                         ,ECONOMY & COMMUNITIES,Grants & Subscriptions,Central Services to the Public
Swale Borough Council,29UM,14/02/2018,1157101,4200.00,P BINNIE CONSULTANCY LTD,07794784                 ,ECONOMIC DEVELOPMENT,Consultancy/Specialist Advice,Planning and Development Services
Swale Borough Council,29UM,14/02/2018,1157277,3024.00,REDACTED PERSONAL INFORMATION,                         ,HOUSING SERVICES,Housing Renovation Grants,Not used in this Structure
Swale Borough Council,29UM,14/02/2018,1157113,363.15,SCOTTISH WATER BUSINESS STREAM LTD,SC294924                 ,SERVICE DELIVERY,Water - Metered,Cultural and Related Services
Swale Borough Council,29UM,14/02/2018,1157085,11660.43,SERCO LEISURE OPERATING LIMITED,04687478                 ,LEISURE & OPEN SPACES,Procurement Contracts Only,Cultural and Related Services
Swale Borough Council,29UM,14/02/2018,1157118,400.00,SHEPPEY MATTERS,3946296                  ,ECONOMY & COMMUNITIES,Grants & Subscriptions,Central Services to the Public
Swale Borough Council,29UM,14/02/2018,1156929,300.00,SITT. & KEMSLEY LIGHT RAILWAY LTD,                         ,ECONOMY & COMMUNITIES,Grants & Subscriptions,Central Services to the Public
Swale Borough Council,29UM,14/02/2018,1157116,300.00,SITTI SWANS FOOTBALL CLUB,                         ,ECONOMY & COMMUNITIES,Grants & Subscriptions,Central Services to the Public
Swale Borough Council,29UM,14/02/2018,1157014,950.00,SITTINGBOURNE IN BLOOM,                         ,ECONOMY & COMMUNITIES,Grants & Subscriptions,Central Services to the Public
Swale Borough Council,29UM,14/02/2018,1157102,37.79,SODEXO MOTIVATION SOLUTIONS UK LTD,2680629                  ,HUMAN RESOURCES,Fees and Services,Corporate & Democratic Core
Swale Borough Council,29UM,14/02/2018,1157144,489.96,SOUTHERN COMMUNICATIONS LTD,1328040                  ,MKS ICT,Telephone,Corporate & Democratic Core
Swale Borough Council,29UM,14/02/2018,1157165,228333.02,SPIRIT OF SITTINGBOURNE LLP,OC377168                 ,FINANCIAL SERVICES,STC - Capitalised Fees And Charges,Not used in this Structure
Swale Borough Council,29UM,14/02/2018,1156988,21708.52,SWALE COMMUNITY LEISURE LIMITED,31132R                   ,LEISURE & OPEN SPACES,Procurement Contracts Only,Cultural and Related Services
Swale Borough Council,29UM,14/02/2018,1156989,30800.00,SWALE COMMUNITY LEISURE LIMITED,31132R                   ,LEISURE & OPEN SPACES,Procurement Contracts Only,Cultural and Related Services
Swale Borough Council,29UM,14/02/2018,1156990,38273.59,SWALE COMMUNITY LEISURE LIMITED,31132R                   ,LEISURE & OPEN SPACES,Procurement Contracts Only,Cultural and Related Services
Swale Borough Council,29UM,14/02/2018,1157195,985.00,SWALE MEDIATION SERVICE,1052669                  ,ECONOMY & COMMUNITIES,Grants & Subscriptions,Central Services to the Public
Swale Borough Council,29UM,14/02/2018,1157155,600.00,TEYNHAM PARISH COUNCIL,                         ,ECONOMY & COMMUNITIES,Grants & Subscriptions,Central Services to the Public
Swale Borough Council,29UM,14/02/2018,1157154,1528.13,THE ALEXANDER CENTRE TRUST LIMITED,07281634                 ,COMMISSIONING & CUSTOMER CONTACT,Rent,Internal Trading Cost Centres
Swale Borough Council,29UM,14/02/2018,1157230,1050.00,THE CO-OPERATIVE FUNERALCARE,30808R                   ,MKS ENVIRONMENTAL SERVICES,Funeral Expenses,Environmental and Regulatory Services
Swale Borough Council,29UM,14/02/2018,1157231,1604.00,THE CO-OPERATIVE FUNERALCARE,30808R                   ,MKS ENVIRONMENTAL SERVICES,Funeral Expenses,Environmental and Regulatory Services
Swale Borough Council,29UM,14/02/2018,1156931,1200.00,THE HARMONY THERAPY TRUST,                         ,ECONOMY & COMMUNITIES,Grants & Subscriptions,Central Services to the Public
Swale Borough Council,29UM,14/02/2018,1156937,500.00,THE ROYAL BRITISH LEGION,                         ,ECONOMY & COMMUNITIES,Grants & Subscriptions,Central Services to the Public
Swale Borough Council,29UM,14/02/2018,1156934,400.00,TUNSTALL SCHOOL PARENT TEACHER ASSOC.,                         ,ECONOMY & COMMUNITIES,Grants & Subscriptions,Central Services to the Public
Swale Borough Council,29UM,14/02/2018,1157209,255.00,WESTBURY SIGNS LTD,6523147                  ,ENVIRONMENTAL RESPONSE TEAM,Signage - External Funded by Grant & Other Income,Environmental and Regulatory Services
Swale Borough Council,29UM,14/02/2018,1156888,400.00,WHITE HORSE ECOLOGY,                         ,LEISURE & OPEN SPACES,Fees and Services,Cultural and Related Services
Swale Borough Council,29UM,14/02/2018,1157276,5005.00,WILLOW TREE HOME SOLUTIONS LTD,                         ,HOUSING SERVICES,Housing Renovation Grants,Not used in this Structure
Swale Borough Council,29UM,20/02/2018,1157402,500.00,FAVERSHAM CRICKET CLUB,                         ,ECONOMY & COMMUNITIES,Grants & Subscriptions,Central Services to the Public
Swale Borough Council,29UM,20/02/2018,4500625,-500.00,FAVERSHAM CRICKET CLUB,                         ,ECONOMY & COMMUNITIES,Grants & Subscriptions,Central Services to the Public
Swale Borough Council,29UM,21/02/2018,1157167,31.50,ALLSTAR BUSINESS SOLUTIONS LTD - (DT),1073098                  ,DEMOCRATIC & ELECTORAL SERVICES,Petrol/Derv & Oil,Corporate & Democratic Core
Swale Borough Council,29UM,21/02/2018,1157167,46.79,ALLSTAR BUSINESS SOLUTIONS LTD - (DT),1073098                  ,SERVICE DELIVERY,Petrol/Derv & Oil,Cultural and Related Services
Swale Borough Council,29UM,21/02/2018,1157167,196.08,ALLSTAR BUSINESS SOLUTIONS LTD - (DT),1073098                  ,ENVIRONMENTAL RESPONSE TEAM,Fuel For Contract Vehicles,Internal Trading Cost Centres
Swale Borough Council,29UM,21/02/2018,1157167,1.50,ALLSTAR BUSINESS SOLUTIONS LTD - (DT),1073098                  ,LEISURE & OPEN SPACES,Fuel For Contract Vehicles,Cultural and Related Services
Swale Borough Council,29UM,21/02/2018,1157167,1.50,ALLSTAR BUSINESS SOLUTIONS LTD - (DT),1073098                  ,ENVIRONMENTAL RESPONSE TEAM,Fuel For Contract Vehicles,Environmental and Regulatory Services
Swale Borough Council,29UM,21/02/2018,1157167,1.50,ALLSTAR BUSINESS SOLUTIONS LTD - (DT),1073098                  ,HOUSING SERVICES,Fuel For Contract Vehicles,Housing
Swale Borough Council,29UM,21/02/2018,1157309,37.64,ALLSTAR BUSINESS SOLUTIONS LTD - (DT),1073098                  ,SERVICE DELIVERY,Petrol/Derv & Oil,Cultural and Related Services
Swale Borough Council,29UM,21/02/2018,1157309,143.22,ALLSTAR BUSINESS SOLUTIONS LTD - (DT),1073098                  ,ENVIRONMENTAL RESPONSE TEAM,Fuel For Contract Vehicles,Internal Trading Cost Centres
Swale Borough Council,29UM,21/02/2018,1157309,68.86,ALLSTAR BUSINESS SOLUTIONS LTD - (DT),1073098                  ,LEISURE & OPEN SPACES,Fuel For Contract Vehicles,Cultural and Related Services
Swale Borough Council,29UM,21/02/2018,1157309,41.83,ALLSTAR BUSINESS SOLUTIONS LTD - (DT),1073098                  ,ENVIRONMENTAL RESPONSE TEAM,Fuel For Contract Vehicles,Environmental and Regulatory Services
Swale Borough Council,29UM,21/02/2018,1157430,2500.00,ASCENDIT LIFTS LTD,3493530                  ,HOUSING SERVICES,Housing Renovation Grants,Not used in this Structure
Swale Borough Council,29UM,21/02/2018,1157360,827.56,BLENWOOD LTD,4383277                  ,LEISURE & OPEN SPACES,Maintenance - Grounds,Environmental and Regulatory Services
Swale Borough Council,29UM,21/02/2018,1157077,18296.00,BRITISH TELECOM PLC,1800000                  ,MKS ICT,Telephone,Corporate & Democratic Core
Swale Borough Council,29UM,21/02/2018,1157199,600.00,CAPITA BUSINESS SERVICES LTD,                         ,REVENUE SERVICES,Fees and Services,Central Services to the Public
Swale Borough Council,29UM,21/02/2018,1157199,300.00,CAPITA BUSINESS SERVICES LTD,                         ,REVENUE SERVICES,Computer Equipment & Materials,Housing
Swale Borough Council,29UM,21/02/2018,1156730,441.00,CBS MAINTENANCE SERVICES LTD,                         ,PROPERTY SERVICES,Non-Planned Building Maintenance,Corporate & Democratic Core
Swale Borough Council,29UM,21/02/2018,1157131,3004.33,COBALT TELEPHONE TECHNOLOGIES LIMITED,03151938                 ,CAR PARKS,Fees - Licence,Highway and Transport Services
Swale Borough Council,29UM,21/02/2018,1157432,6530.00,DAYTRAD LIMITED,7654373                  ,HOUSING SERVICES,Housing Renovation Grants,Not used in this Structure
Swale Borough Council,29UM,21/02/2018,1157239,811.00,FIRE & SECURITY CONSULTANCY LTD,5946022                  ,PROPERTY SERVICES,Buildings Maintenance,Corporate & Democratic Core
Swale Borough Council,29UM,21/02/2018,1157166,889.20,GLASDON U.K.LIMITED,2160576                  ,LEISURE & OPEN SPACES,Construction,Not used in this Structure
Swale Borough Council,29UM,21/02/2018,1157433,5325.00,GREENS GROUNDWORK,                         ,HOUSING SERVICES,Housing Renovation Grants,Not used in this Structure
Swale Borough Council,29UM,21/02/2018,1157339,189.00,HAYMARKET MEDIA GROUP LTD,                         ,LEISURE & OPEN SPACES,"Books, Journals & e - resources",Internal Trading Cost Centres
Swale Borough Council,29UM,21/02/2018,1157339,189.00,HAYMARKET MEDIA GROUP LTD,                         ,LEISURE & OPEN SPACES,"Books, Journals & e - resources",Internal Trading Cost Centres
Swale Borough Council,29UM,21/02/2018,1157107,575.99,HILDERBRANDS REMOVALS AND STORAGE,                         ,HOUSING SERVICES,Homelessness  Prevention Services,Housing
Swale Borough Council,29UM,21/02/2018,1157426,3438.34,HUBBARD & HOUGHTON CONSTRUCTION LTD,                         ,HOUSING SERVICES,Housing Renovation Grants,Not used in this Structure
Swale Borough Council,29UM,21/02/2018,1157427,8733.00,HUBBARD & HOUGHTON CONSTRUCTION LTD,                         ,HOUSING SERVICES,Housing Renovation Grants,Not used in this Structure
Swale Borough Council,29UM,21/02/2018,1157428,600.00,HUBBARD & HOUGHTON LTD,                         ,HOUSING SERVICES,Housing Renovation Grants,Not used in this Structure
Swale Borough Council,29UM,21/02/2018,1157393,750.00,IWADE PARISH COUNCIL,                         ,TOURISM & SPORTS DEVELOPMENT,Grants & Subscriptions,Cultural and Related Services
Swale Borough Council,29UM,21/02/2018,1157168,2525.00,J N CLEARANCE,                         ,CONTRACT & PROCUREMENT,"Clearance Of Waste,Fly Tipping",Environmental and Regulatory Services
Swale Borough Council,29UM,21/02/2018,1157227,4518.91,KENT COUNTY COUNCIL (KCS),                         ,PROPERTY SERVICES,Electricity,Corporate & Democratic Core
Swale Borough Council,29UM,21/02/2018,1157348,330.00,LEWES DISTRICT COUNCIL,                         ,DEMOCRATIC & ELECTORAL SERVICES,Grants & Subscriptions,Corporate & Democratic Core
Swale Borough Council,29UM,21/02/2018,1157190,2640.00,LG FUTURES LTD,05308266                 ,FINANCIAL SERVICES,Payments in Year,Ledger/Suspense Codes
Swale Borough Council,29UM,21/02/2018,1157367,890.60,LLOYDS BANK - (DT),                         ,FINANCIAL SERVICES,Bank Charges,Corporate & Democratic Core
Swale Borough Council,29UM,21/02/2018,1157234,2072.72,LOGOTECH SYSTEMS,2529444                  ,FINANCIAL SERVICES,Computer Equipment & Materials,Internal Trading Cost Centres
Swale Borough Council,29UM,21/02/2018,1157366,252.00,M.T.S. CLEANSING SERVICES LTD,2045340                  ,LEISURE & OPEN SPACES,Clearing Cesspools,Cultural and Related Services
Swale Borough Council,29UM,21/02/2018,1157288,18827.82,MAIDSTONE BOROUGH COUNCIL,                         ,MKS ICT,Computer Equipment & Materials,Internal Trading Cost Centres
Swale Borough Council,29UM,21/02/2018,1157288,7884.00,MAIDSTONE BOROUGH COUNCIL,                         ,COMMISSIONING & CUSTOMER CONTACT,Computer Equipment & Materials,Internal Trading Cost Centres
Swale Borough Council,29UM,21/02/2018,1157288,2863.33,MAIDSTONE BOROUGH COUNCIL,                         ,PLANNING SERVICES,Computer Equipment & Materials,Internal Trading Cost Centres
Swale Borough Council,29UM,21/02/2018,1157288,390.20,MAIDSTONE BOROUGH COUNCIL,                         ,MKS ICT,Equipment Rental,Holding Codes
Swale Borough Council,29UM,21/02/2018,1157269,1281.90,MARTIN CRANFIELD ASSOCIATES LIMITED,05210576                 ,MKS ENVIRONMENTAL SERVICES,Private Contractors,Environmental and Regulatory Services
Swale Borough Council,29UM,21/02/2018,1157045,2289.30,METRIC GROUP LTD,2560839                  ,CAR PARKS,Equipment Maintenance,Highway and Transport Services
Swale Borough Council,29UM,21/02/2018,1157377,685.00,REDACTED PERSONAL INFORMATION,                         ,HOUSING SERVICES,RDS - Landlord claim on Bond Scheme,Housing
Swale Borough Council,29UM,21/02/2018,1157394,1000.00,NEWNHAM PARISH COUNCIL,                         ,TOURISM & SPORTS DEVELOPMENT,Grants & Subscriptions,Cultural and Related Services
Swale Borough Council,29UM,21/02/2018,1157178,296.87,NPOWER,                         ,CAR PARKS,Electricity,Highway and Transport Services
Swale Borough Council,29UM,21/02/2018,1157328,339.30,PHOENIX SOFTWARE LTD,                         ,SERVICE DELIVERY,Computer Equipment & Materials,Internal Trading Cost Centres
Swale Borough Council,29UM,21/02/2018,1157338,1094.70,PREMIER PAPER GROUP LTD,                         ,PROPERTY SERVICES,Paper,Internal Trading Cost Centres
Swale Borough Council,29UM,21/02/2018,1157051,15065.00,RAINBOW WATER SERVICES LTD,2735065                  ,PROPERTY SERVICES,Non-Planned Building Maintenance,Corporate & Democratic Core
Swale Borough Council,29UM,21/02/2018,1157052,5902.50,RAINBOW WATER SERVICES LTD,2735065                  ,CONTRACT & PROCUREMENT,Buildings Maintenance,Environmental and Regulatory Services
Swale Borough Council,29UM,21/02/2018,1157467,176.90,RBS PURCHASING CARD (DT) - VIRGIN TRAINS,,DEMOCRATIC & ELECTORAL SERVICES,Staff Travel - Buses & Trains,Internal Trading Cost Centres
Swale Borough Council,29UM,21/02/2018,1157467,33.80,RBS PURCHASING CARD (DT) - SOUTHEASTERN TRAINS,,DEMOCRATIC & ELECTORAL SERVICES,Staff Travel - Buses & Trains,Internal Trading Cost Centres
Swale Borough Council,29UM,21/02/2018,1157468,27.26,RBS PURCHASING CARD (DT) - FACEBOOK LTD,                         ,COMMUNICATIONS,Advertising & Promotion,Internal Trading Cost Centres
Swale Borough Council,29UM,21/02/2018,1157468,48.33,RBS PURCHASING CARD (DT) - PREMIER INN,                         ,ECONOMIC DEVELOPMENT,Conference,Internal Trading Cost Centres
Swale Borough Council,29UM,21/02/2018,1157468,48.32,RBS PURCHASING CARD (DT) - PREMIER INN,                         ,TOURISM & SPORTS DEVELOPMENT,Conference,Internal Trading Cost Centres
Swale Borough Council,29UM,21/02/2018,1157468,35.00,RBS PURCHASING CARD (DT) - SAINSBURY'S,                         ,TOURISM & SPORTS DEVELOPMENT,Catering Provisions,Internal Trading Cost Centres
Swale Borough Council,29UM,21/02/2018,1157468,190.00,RBS PURCHASING CARD (DT) - TOURISM SOCIETY,                         ,TOURISM & SPORTS DEVELOPMENT,Conference,Internal Trading Cost Centres
Swale Borough Council,29UM,21/02/2018,1157469,359.96,RBS PURCHASING CARD (DT) - CHAIR OFFICE,                         ,HOUSING SERVICES,Equipment Maintenance,Housing
Swale Borough Council,29UM,21/02/2018,1157469,53.85,RBS PURCHASING CARD (DT) - VERSAPAK,                         ,PROPERTY SERVICES,Equipment Purchase,Corporate & Democratic Core
Swale Borough Council,29UM,21/02/2018,1157469,116.00,RBS PURCHASING CARD (DT) - APEX RADIO SYSTEMS,                         ,PROPERTY SERVICES,Equipment Purchase,Corporate & Democratic Core
Swale Borough Council,29UM,21/02/2018,1157470,147.00,RBS PURCHASING CARD (DT) - HMCTS,                         ,REVENUE SERVICES,Court Costs,Central Services to the Public
Swale Borough Council,29UM,21/02/2018,1157470,537.00,RBS PURCHASING CARD (DT) - HMCTS,                         ,REVENUE SERVICES,Court Costs,Central Services to the Public
Swale Borough Council,29UM,21/02/2018,1157470,11.28,RBS PURCHASING CARD (DT) - AMAZON,                         ,REVENUE SERVICES,Stationery,Central Services to the Public
Swale Borough Council,29UM,21/02/2018,1157470,8.27,RBS PURCHASING CARD (DT) - AMAZON,                         ,REVENUE SERVICES,Stationery,Housing
Swale Borough Council,29UM,21/02/2018,1157471,1497.00,RBS PURCHASING CARD (DT) - HMCTS,                         ,REVENUE SERVICES,Fees and Services,Central Services to the Public
Swale Borough Council,29UM,21/02/2018,1157472,72.97,RBS PURCHASING CARD (DT) - ASDA,                         ,HOUSING SERVICES,Fuel For Contract Vehicles,Housing
Swale Borough Council,29UM,21/02/2018,1157472,15.82,RBS PURCHASING CARD (DT) - WICKES,                         ,HOUSING SERVICES,Staying Put - Materials,Housing
Swale Borough Council,29UM,21/02/2018,1157472,145.00,RBS PURCHASING CARD (DT) - THE RAMP PEOPLE,                         ,HOUSING SERVICES,Staying Put - Materials,Housing
Swale Borough Council,29UM,21/02/2018,1157472,115.00,RBS PURCHASING CARD (DT) - THE RAMP PEOPLE,                         ,HOUSING SERVICES,Staying Put - Materials,Housing
Swale Borough Council,29UM,21/02/2018,1157472,3.32,RBS PURCHASING CARD (DT) - BUNNINGS WAREHOUSE,                         ,HOUSING SERVICES,Staying Put - Materials,Housing
Swale Borough Council,29UM,21/02/2018,1157472,4.92,RBS PURCHASING CARD (DT) - BUNNINGS WAREHOUSE,                         ,HOUSING SERVICES,Staying Put - Materials,Housing
Swale Borough Council,29UM,21/02/2018,1157472,12.50,RBS PURCHASING CARD (DT) - BUNNINGS WAREHOUSE,                         ,HOUSING SERVICES,Staying Put - Materials,Housing
Swale Borough Council,29UM,21/02/2018,1157472,14.34,RBS PURCHASING CARD (DT) - A S BELL LTD,                         ,HOUSING SERVICES,Staying Put - Materials,Housing
Swale Borough Council,29UM,21/02/2018,1157472,76.65,RBS PURCHASING CARD (DT) - ASDA,                         ,HOUSING SERVICES,Fuel For Contract Vehicles,Housing
Swale Borough Council,29UM,21/02/2018,1157473,11.00,RBS PURCHASING CARD (DT) - MEDWAY COUNCIL,,PROPERTY SERVICES,Fees & Services,Trading Undertaking
Swale Borough Council,29UM,21/02/2018,1157473,17.38,RBS PURCHASING CARD (DT) - OYEZ ,,MKS LEGAL SERVICES,Stationery,Internal Trading Cost Centres
Swale Borough Council,29UM,21/02/2018,1157473,17.38,RBS PURCHASING CARD (DT) - OYEZ ,,MKS LEGAL SERVICES,Stationery,Internal Trading Cost Centres
Swale Borough Council,29UM,21/02/2018,1157473,11.16,RBS PURCHASING CARD (DT) - OYEZ ,,MKS LEGAL SERVICES,Stationery,Internal Trading Cost Centres
Swale Borough Council,29UM,21/02/2018,1157473,61.65,RBS PURCHASING CARD (DT) - CILEX LAW,,MKS LEGAL SERVICES,"Books, Journals & e - resources",Internal Trading Cost Centres
Swale Borough Council,29UM,21/02/2018,1157473,61.65,RBS PURCHASING CARD (DT) - CILEX LAW,,MKS LEGAL SERVICES,"Books, Journals & e - resources",Internal Trading Cost Centres
Swale Borough Council,29UM,21/02/2018,1157474,9.20,RBS PURCHASING CARD (DT) - AMAZON,                         ,ENVIRONMENTAL RESPONSE TEAM,Equipment Purchase,Internal Trading Cost Centres
Swale Borough Council,29UM,21/02/2018,1157474,19.15,RBS PURCHASING CARD (DT) - AMAZON,                         ,ENVIRONMENTAL RESPONSE TEAM,Equipment Purchase,Internal Trading Cost Centres
Swale Borough Council,29UM,21/02/2018,1157474,408.79,RBS PURCHASING CARD (DT) - VISTAPRINT,                         ,ENVIRONMENTAL RESPONSE TEAM,Equipment Purchase,Internal Trading Cost Centres
Swale Borough Council,29UM,21/02/2018,1157474,25.94,RBS PURCHASING CARD (DT) - AMAZON,                         ,ENVIRONMENTAL RESPONSE TEAM,Equipment Purchase,Internal Trading Cost Centres
Swale Borough Council,29UM,21/02/2018,1157474,9.96,RBS PURCHASING CARD (DT) - AMAZON,                         ,ENVIRONMENTAL RESPONSE TEAM,Equipment Purchase,Internal Trading Cost Centres
Swale Borough Council,29UM,21/02/2018,1157475,26.64,RBS PURCHASING CARD (DT) - WICKES,,PROPERTY SERVICES,Non-Planned Building Maintenance,Corporate & Democratic Core
Swale Borough Council,29UM,21/02/2018,1157475,7.98,RBS PURCHASING CARD (DT) - BLACK CAT TRADING,,PROPERTY SERVICES,Non-Planned Building Maintenance,Trading Undertaking
Swale Borough Council,29UM,21/02/2018,1157475,70.47,RBS PURCHASING CARD (DT) - WICKES,,HOUSING SERVICES,General Maintenance,Housing
Swale Borough Council,29UM,21/02/2018,1157476,7.47,RBS PURCHASING CARD (DT) - BUNNINGS WAREHOUSE,,LEISURE & OPEN SPACES,Swale In Bloom,Cultural and Related Services
Swale Borough Council,29UM,21/02/2018,1157476,46.72,RBS PURCHASING CARD (DT) - AMAZON,,LEISURE & OPEN SPACES,Swale In Bloom,Cultural and Related Services
Swale Borough Council,29UM,21/02/2018,1157342,1281.66,ROYAL MAIL GROUP LTD,4138203                  ,DEMOCRATIC & ELECTORAL SERVICES,Postage,Central Services to the Public
Swale Borough Council,29UM,21/02/2018,1157353,1326.65,ROYAL MAIL GROUP LTD,4138203                  ,PROPERTY SERVICES,Postage,Holding Codes
Swale Borough Council,29UM,21/02/2018,1157325,4539.71,SHARP BUSINESS SYSTEMS UK,2136901                  ,MKS ICT,Equipment Rental,Holding Codes
Swale Borough Council,29UM,21/02/2018,1157429,16501.28,SOUTH EAST BUILDING CO LTD,1786838                  ,HOUSING SERVICES,Housing Renovation Grants,Not used in this Structure
Swale Borough Council,29UM,21/02/2018,1157462,193965.15,SPIRIT OF SITTINGBOURNE LLP,OC377168                 ,FINANCIAL SERVICES,STC - Capitalised Fees And Charges,Not used in this Structure
Swale Borough Council,29UM,21/02/2018,1157215,1425.00,THE OYSTER PARTNERSHIP,05020374                 ,PLANNING SERVICES,Agency/Contract Staff,Planning and Development Services
Swale Borough Council,29UM,21/02/2018,1157295,10575.00,TRAFFIC DATA CENTRE LIMITED,05876485                 ,MKS ENVIRONMENTAL SERVICES,Consultancy/Specialist Advice,Environmental and Regulatory Services
Swale Borough Council,29UM,21/02/2018,1157296,900.00,TRAFFIC DATA CENTRE LIMITED,05876485                 ,MKS ENVIRONMENTAL SERVICES,Consultancy/Specialist Advice,Environmental and Regulatory Services
Swale Borough Council,29UM,21/02/2018,1157296,92.60,TRAFFIC DATA CENTRE LIMITED,05876485                 ,MKS ENVIRONMENTAL SERVICES,Consultancy/Specialist Advice,Environmental and Regulatory Services
Swale Borough Council,29UM,21/02/2018,1156922,193.80,WHISTL UK LIMITED,04417047                 ,REVENUE SERVICES,Postage,Central Services to the Public
Swale Borough Council,29UM,21/02/2018,1156922,96.90,WHISTL UK LIMITED,04417047                 ,REVENUE SERVICES,Postage,Housing
Swale Borough Council,29UM,21/02/2018,1156922,47.70,WHISTL UK LIMITED,04417047                 ,PROPERTY SERVICES,Postage,Holding Codes
Swale Borough Council,29UM,21/02/2018,1156922,1.75,WHISTL UK LIMITED,04417047                 ,DEMOCRATIC & ELECTORAL SERVICES,Postage,Central Services to the Public
Swale Borough Council,29UM,21/02/2018,1156923,333.36,WHISTL UK LIMITED,04417047                 ,REVENUE SERVICES,Postage,Central Services to the Public
Swale Borough Council,29UM,21/02/2018,1156923,166.67,WHISTL UK LIMITED,04417047                 ,REVENUE SERVICES,Postage,Housing
Swale Borough Council,29UM,21/02/2018,1156923,17.11,WHISTL UK LIMITED,04417047                 ,CAR PARKS,Postage,Internal Trading Cost Centres
Swale Borough Council,29UM,21/02/2018,1156923,30.35,WHISTL UK LIMITED,04417047                 ,PROPERTY SERVICES,Postage,Holding Codes
Swale Borough Council,29UM,21/02/2018,1156923,1036.72,WHISTL UK LIMITED,04417047                 ,DEMOCRATIC & ELECTORAL SERVICES,Postage,Central Services to the Public
Swale Borough Council,29UM,21/02/2018,1157115,451.14,WHISTL UK LIMITED,04417047                 ,REVENUE SERVICES,Postage,Central Services to the Public
Swale Borough Council,29UM,21/02/2018,1157115,225.56,WHISTL UK LIMITED,04417047                 ,REVENUE SERVICES,Postage,Housing
Swale Borough Council,29UM,21/02/2018,1157115,11.71,WHISTL UK LIMITED,04417047                 ,CAR PARKS,Postage,Internal Trading Cost Centres
Swale Borough Council,29UM,21/02/2018,1157115,57.98,WHISTL UK LIMITED,04417047                 ,PROPERTY SERVICES,Postage,Holding Codes
Swale Borough Council,29UM,21/02/2018,1157115,676.25,WHISTL UK LIMITED,04417047                 ,DEMOCRATIC & ELECTORAL SERVICES,Postage,Central Services to the Public
Swale Borough Council,29UM,21/02/2018,1157259,742.23,WHISTL UK LIMITED,04417047                 ,REVENUE SERVICES,Postage,Central Services to the Public
Swale Borough Council,29UM,21/02/2018,1157259,371.12,WHISTL UK LIMITED,04417047                 ,REVENUE SERVICES,Postage,Housing
Swale Borough Council,29UM,21/02/2018,1157259,14.89,WHISTL UK LIMITED,04417047                 ,CAR PARKS,Postage,Internal Trading Cost Centres
Swale Borough Council,29UM,21/02/2018,1157259,133.13,WHISTL UK LIMITED,04417047                 ,PROPERTY SERVICES,Postage,Holding Codes
Swale Borough Council,29UM,21/02/2018,1157259,191.18,WHISTL UK LIMITED,04417047                 ,DEMOCRATIC & ELECTORAL SERVICES,Postage,Central Services to the Public
Swale Borough Council,29UM,28/02/2018,1157323,520.00,A2 CABS LIMITED,3911585                  ,LICENCING,Hackney Carriage Licences,Environmental and Regulatory Services
Swale Borough Council,29UM,28/02/2018,1157392,8925.00,BIFFA MUNICIPAL SERVICES LTD,4321212                  ,COMMISSIONING & CUSTOMER CONTACT,Fees and Services,Internal Trading Cost Centres
Swale Borough Council,29UM,28/02/2018,1157455,345.22,BLENWOOD LTD,4383277                  ,LEISURE & OPEN SPACES,Maintenance - Grounds,Environmental and Regulatory Services
Swale Borough Council,29UM,28/02/2018,1157457,403.90,BLENWOOD LTD,4383277                  ,LEISURE & OPEN SPACES,Maintenance - Grounds,Environmental and Regulatory Services
Swale Borough Council,29UM,28/02/2018,1157458,321.18,BLENWOOD LTD,4383277                  ,LEISURE & OPEN SPACES,Maintenance - Grounds,Cultural and Related Services
Swale Borough Council,29UM,28/02/2018,1157384,3500.00,BLOOM PROCUREMENT SERVICES LTD,08045123                 ,PROPERTY SERVICES,Consultancy/Specialist Advice,Internal Trading Cost Centres
Swale Borough Council,29UM,28/02/2018,1157439,1350.00,BLUE TOWN REMEMBERED,                         ,ECONOMY & COMMUNITIES,Grants & Subscriptions,Central Services to the Public
Swale Borough Council,29UM,28/02/2018,1157260,1250.00,BRFM BRIDGE RADIO LTD,                         ,ECONOMY & COMMUNITIES,Grants & Subscriptions,Central Services to the Public
Swale Borough Council,29UM,28/02/2018,1157344,329.93,BRITISH GAS TRADING LTD,                         ,COMMUNITY SAFETY,Gas,Cultural and Related Services
Swale Borough Council,29UM,28/02/2018,1157397,9500.00,CALLCREDIT LIMITED,3961870                  ,REVENUE SERVICES,Fees and Services,Central Services to the Public
Swale Borough Council,29UM,28/02/2018,1157337,74.56,DCB (KENT) LIMITED,03532339                 ,LEISURE & OPEN SPACES,Non-Planned Building Maintenance,Environmental and Regulatory Services
Swale Borough Council,29UM,28/02/2018,1157337,146.79,DCB (KENT) LIMITED,03532339                 ,LEISURE & OPEN SPACES,Non-Planned Building Maintenance,Environmental and Regulatory Services
Swale Borough Council,29UM,28/02/2018,1157337,152.56,DCB (KENT) LIMITED,03532339                 ,LEISURE & OPEN SPACES,Non-Planned Building Maintenance,Environmental and Regulatory Services
Swale Borough Council,29UM,28/02/2018,1157337,166.18,DCB (KENT) LIMITED,03532339                 ,PROPERTY SERVICES,Non-Planned Building Maintenance,Cultural and Related Services
Swale Borough Council,29UM,28/02/2018,1157337,36.94,DCB (KENT) LIMITED,03532339                 ,PROPERTY SERVICES,Non-Planned Building Maintenance,Cultural and Related Services
Swale Borough Council,29UM,28/02/2018,1157337,166.49,DCB (KENT) LIMITED,03532339                 ,HOUSING SERVICES,General Maintenance,Housing
Swale Borough Council,29UM,28/02/2018,1157337,21.50,DCB (KENT) LIMITED,03532339                 ,HOUSING SERVICES,General Maintenance,Housing
Swale Borough Council,29UM,28/02/2018,1157337,22.50,DCB (KENT) LIMITED,03532339                 ,HOUSING SERVICES,General Maintenance,Housing
Swale Borough Council,29UM,28/02/2018,1157337,7493.92,DCB (KENT) LIMITED,03532339                 ,PROPERTY SERVICES,Buildings Maintenance,Corporate & Democratic Core
Swale Borough Council,29UM,28/02/2018,1157337,60.18,DCB (KENT) LIMITED,03532339                 ,PROPERTY SERVICES,Non-Planned Building Maintenance,Corporate & Democratic Core
Swale Borough Council,29UM,28/02/2018,1157337,22.50,DCB (KENT) LIMITED,03532339                 ,PROPERTY SERVICES,Non-Planned Building Maintenance,Corporate & Democratic Core
Swale Borough Council,29UM,28/02/2018,1157337,32.25,DCB (KENT) LIMITED,03532339                 ,PROPERTY SERVICES,Non-Planned Building Maintenance,Corporate & Democratic Core
Swale Borough Council,29UM,28/02/2018,1157337,10.75,DCB (KENT) LIMITED,03532339                 ,CONTRACT & PROCUREMENT,Non-Planned Building Maintenance,Environmental and Regulatory Services
Swale Borough Council,29UM,28/02/2018,1157337,35.03,DCB (KENT) LIMITED,03532339                 ,CONTRACT & PROCUREMENT,Non-Planned Building Maintenance,Environmental and Regulatory Services
Swale Borough Council,29UM,28/02/2018,1157337,22.50,DCB (KENT) LIMITED,03532339                 ,CONTRACT & PROCUREMENT,Non-Planned Building Maintenance,Environmental and Regulatory Services
Swale Borough Council,29UM,28/02/2018,1157337,33.75,DCB (KENT) LIMITED,03532339                 ,CONTRACT & PROCUREMENT,Non-Planned Building Maintenance,Environmental and Regulatory Services
Swale Borough Council,29UM,28/02/2018,1157337,1198.99,DCB (KENT) LIMITED,03532339                 ,LEISURE & OPEN SPACES,Non-Planned Building Maintenance,Cultural and Related Services
Swale Borough Council,29UM,28/02/2018,1157337,22.50,DCB (KENT) LIMITED,03532339                 ,LEISURE & OPEN SPACES,Non-Planned Building Maintenance,Cultural and Related Services
Swale Borough Council,29UM,28/02/2018,1157337,37.75,DCB (KENT) LIMITED,03532339                 ,LEISURE & OPEN SPACES,Non-Planned Building Maintenance,Cultural and Related Services
Swale Borough Council,29UM,28/02/2018,1157337,321.22,DCB (KENT) LIMITED,03532339                 ,LEISURE & OPEN SPACES,Non-Planned Building Maintenance,Cultural and Related Services
Swale Borough Council,29UM,28/02/2018,1157337,55.29,DCB (KENT) LIMITED,03532339                 ,LEISURE & OPEN SPACES,Non-Planned Building Maintenance,Cultural and Related Services
Swale Borough Council,29UM,28/02/2018,1157337,49.15,DCB (KENT) LIMITED,03532339                 ,LEISURE & OPEN SPACES,Non-Planned Building Maintenance,Cultural and Related Services
Swale Borough Council,29UM,28/02/2018,1157337,62.68,DCB (KENT) LIMITED,03532339                 ,LEISURE & OPEN SPACES,Non-Planned Building Maintenance,Cultural and Related Services
Swale Borough Council,29UM,28/02/2018,1157021,-116.70,EDF ENERGY CUSTOMERS PLC,                         ,HOUSING SERVICES,Electricity,Housing
Swale Borough Council,29UM,28/02/2018,1157021,-235.44,EDF ENERGY CUSTOMERS PLC,                         ,HOUSING SERVICES,Gas,Housing
Swale Borough Council,29UM,28/02/2018,1157021,262.69,EDF ENERGY CUSTOMERS PLC,                         ,HOUSING SERVICES,Electricity,Housing
Swale Borough Council,29UM,28/02/2018,1157021,648.19,EDF ENERGY CUSTOMERS PLC,                         ,HOUSING SERVICES,Gas,Housing
Swale Borough Council,29UM,28/02/2018,1157263,280.00,HARTLIP VILLAGE HALL,                         ,ECONOMY & COMMUNITIES,Grants & Subscriptions,Central Services to the Public
Swale Borough Council,29UM,28/02/2018,1157330,2644.00,HERITAGE STONE RESTORATION CO. LIMITED,1877637                  ,LEISURE & OPEN SPACES,Maintenance - Grounds,Environmental and Regulatory Services
Swale Borough Council,29UM,28/02/2018,1157503,1000.00,HOLY TRINITY MILTON REGIS BELL RINGERS,                         ,TOURISM & SPORTS DEVELOPMENT,Grants & Subscriptions,Cultural and Related Services
Swale Borough Council,29UM,28/02/2018,1157504,500.00,HOLY TRINITY MILTON REGIS BELL RINGERS,                         ,ECONOMY & COMMUNITIES,Grants & Subscriptions,Central Services to the Public
Swale Borough Council,29UM,28/02/2018,1157053,450.00,HYDRO DESCALING LTD,1304128                  ,CAR PARKS,Maintenance - Grounds,Highway and Transport Services
Swale Borough Council,29UM,28/02/2018,1157413,1169.12,KENT COUNTY COUNCIL,                         ,SERVICE DELIVERY,Fees and Services,Highway and Transport Services
Swale Borough Council,29UM,28/02/2018,1157246,3565.02,KENT COUNTY COUNCIL (KCS),                         ,PROPERTY SERVICES,Gas,Corporate & Democratic Core
Swale Borough Council,29UM,28/02/2018,1157370,750.00,LEMAR LIMITED,04350292                 ,CAR PARKS,Maintenance - Grounds,Highway and Transport Services
Swale Borough Council,29UM,28/02/2018,1157370,620.50,LEMAR LIMITED,04350292                 ,CAR PARKS,Maintenance - Grounds,Highway and Transport Services
Swale Borough Council,29UM,28/02/2018,1157371,2500.00,LEMAR LIMITED,04350292                 ,TOURISM & SPORTS DEVELOPMENT,Private Contractors - CIS,Trading Undertaking
Swale Borough Council,29UM,28/02/2018,1157371,1400.00,LEMAR LIMITED,04350292                 ,TOURISM & SPORTS DEVELOPMENT,Private Contractors - CIS,Trading Undertaking
Swale Borough Council,29UM,28/02/2018,1157282,73754.43,MAIDSTONE BOROUGH COUNCIL,                         ,CONTRACT & PROCUREMENT,Private Contractors,Environmental and Regulatory Services
Swale Borough Council,29UM,28/02/2018,1157282,200997.28,MAIDSTONE BOROUGH COUNCIL,                         ,CONTRACT & PROCUREMENT,Private Contractors,Environmental and Regulatory Services
Swale Borough Council,29UM,28/02/2018,1157158,17061.72,MATRIX SCM LTD,2227962                  ,HUMAN RESOURCES,Agency/Contract Staff,Internal Trading Cost Centres
Swale Borough Council,29UM,28/02/2018,1157308,15792.76,MATRIX SCM LTD,2227962                  ,HUMAN RESOURCES,Agency/Contract Staff,Internal Trading Cost Centres
Swale Borough Council,29UM,28/02/2018,1157495,11874.01,MATRIX SCM LTD,2227962                  ,HUMAN RESOURCES,Agency/Contract Staff,Internal Trading Cost Centres
Swale Borough Council,29UM,28/02/2018,1157379,2135.00,MAYLOW CONSTRUCTION LTD,                         ,LEISURE & OPEN SPACES,Maintenance - Grounds,Cultural and Related Services
Swale Borough Council,29UM,28/02/2018,1157379,4840.00,MAYLOW CONSTRUCTION LTD,                         ,LEISURE & OPEN SPACES,Maintenance - Grounds,Cultural and Related Services
Swale Borough Council,29UM,28/02/2018,1157380,409.00,MAYLOW CONSTRUCTION LTD,                         ,LEISURE & OPEN SPACES,Maintenance - Grounds,Cultural and Related Services
Swale Borough Council,29UM,28/02/2018,1157380,3819.00,MAYLOW CONSTRUCTION LTD,                         ,LEISURE & OPEN SPACES,Maintenance - Grounds,Cultural and Related Services
Swale Borough Council,29UM,28/02/2018,1157560,587.00,MAYLOW CONSTRUCTION LTD,                         ,LEISURE & OPEN SPACES,Maintenance - Grounds,Cultural and Related Services
Swale Borough Council,29UM,28/02/2018,1157069,255.20,MEDWAY ACCOMMODATION LIMITED,                         ,HOUSING SERVICES,B & B - Homelessness Landlord Payments,Housing
Swale Borough Council,29UM,28/02/2018,1157069,53.17,MEDWAY ACCOMMODATION LIMITED,                         ,HOUSING SERVICES,B & B - Homelessness Landlord Payments,Housing
Swale Borough Council,29UM,28/02/2018,1157343,620.00,MR J W GATES,                         ,SERVICE DELIVERY,Capital Constuction - CIS Works,Not used in this Structure
Swale Borough Council,29UM,28/02/2018,1157343,300.00,MR J W GATES,                         ,SERVICE DELIVERY,Capital Constuction - CIS Works,Not used in this Structure
Swale Borough Council,29UM,28/02/2018,1157535,480.00,REDACTED PERSONAL INFORMATION,                         ,HOUSING SERVICES,Homelessness  Prevention Services,Housing
Swale Borough Council,29UM,28/02/2018,1157043,494.20,NEW LEAF SUPPORT LTD,                         ,HOUSING SERVICES,B & B - Homelessness Landlord Payments,Housing
Swale Borough Council,29UM,28/02/2018,1157403,500.00,NEWNHAM PARISH COUNCIL,                         ,ECONOMY & COMMUNITIES,Grants & Subscriptions,Central Services to the Public
Swale Borough Council,29UM,28/02/2018,1157399,296.85,REDACTED PERSONAL INFORMATION,                         ,PROPERTY SERVICES,Non-Planned Building Maintenance,Corporate & Democratic Core
Swale Borough Council,29UM,28/02/2018,1157409,700.00,PARKINSONS UK,                         ,ECONOMY & COMMUNITIES,Grants & Subscriptions,Central Services to the Public
Swale Borough Council,29UM,28/02/2018,1157492,325.00,PARKINSONS UK,                         ,ECONOMY & COMMUNITIES,Grants & Subscriptions,Central Services to the Public
Swale Borough Council,29UM,28/02/2018,1157236,300.00,RILEY'S REMOVALS,                         ,HOUSING SERVICES,Storage Expenses,Housing
Swale Borough Council,29UM,28/02/2018,1157025,800.00,ROADMARKING EXCEL LTD,08121734                 ,CAR PARKS,Road Lining,Highway and Transport Services
Swale Borough Council,29UM,28/02/2018,1157365,818.38,ROYAL MAIL GROUP LTD,4138203                  ,REVENUE SERVICES,Postage,Central Services to the Public
Swale Borough Council,29UM,28/02/2018,1157386,650.00,RUSTY GATES,                         ,LEISURE & OPEN SPACES,Maintenance - Grounds,Environmental and Regulatory Services
Swale Borough Council,29UM,28/02/2018,1157442,325.00,S & J CATERING SERVICES,                         ,COMMUNITY SAFETY,Catering Provisions,Planning and Development Services
Swale Borough Council,29UM,28/02/2018,1157212,1116.04,SCOTTISH WATER BUSINESS STREAM LTD,SC294924                 ,CONTRACT & PROCUREMENT,Water - Metered,Environmental and Regulatory Services
Swale Borough Council,29UM,28/02/2018,1157316,832.93,SCOTTISH WATER BUSINESS STREAM LTD,SC294924                 ,CONTRACT & PROCUREMENT,Water - Metered,Environmental and Regulatory Services
Swale Borough Council,29UM,28/02/2018,1157368,1560.80,SCOTTISH WATER BUSINESS STREAM LTD,SC294924                 ,CONTRACT & PROCUREMENT,Water - Metered,Environmental and Regulatory Services
Swale Borough Council,29UM,28/02/2018,1157572,416.67,SET IN STONE,                         ,LEISURE & OPEN SPACES,Ex-Gratia Payments,Environmental and Regulatory Services
Swale Borough Council,29UM,28/02/2018,1157261,300.00,SHEPPEY DISTRICT SCOUTS,                         ,ECONOMY & COMMUNITIES,Grants & Subscriptions,Central Services to the Public
Swale Borough Council,29UM,28/02/2018,1157265,700.00,SHEPPEY HERITAGE TRUST LTD,                         ,ECONOMY & COMMUNITIES,Grants & Subscriptions,Central Services to the Public
Swale Borough Council,29UM,28/02/2018,1157408,2851.00,SITTINGBOURNE COMMUNITY RADIO,                         ,ECONOMY & COMMUNITIES,Grants & Subscriptions,Central Services to the Public
Swale Borough Council,29UM,28/02/2018,1157214,1942.92,SOUTH EAST WATER,2679874                  ,CONTRACT & PROCUREMENT,Water - Metered,Environmental and Regulatory Services
Swale Borough Council,29UM,28/02/2018,1157219,12510.14,SWALE COMMUNITY LEISURE LIMITED,31132R                   ,LEISURE & OPEN SPACES,Procurement Contracts Only,Cultural and Related Services
Swale Borough Council,29UM,28/02/2018,1157220,7700.00,SWALE COMMUNITY LEISURE LIMITED,31132R                   ,LEISURE & OPEN SPACES,Procurement Contracts Only,Cultural and Related Services
Swale Borough Council,29UM,28/02/2018,1157552,250.00,THE ABBEY SCHOOL,07697086                 ,CAR PARKS,Fees and Services,Highway and Transport Services
Swale Borough Council,29UM,28/02/2018,1157262,1100.00,THE AVENUE THEATRE,                         ,ECONOMY & COMMUNITIES,Grants & Subscriptions,Central Services to the Public
Swale Borough Council,29UM,28/02/2018,1157513,1384.00,THE CO-OPERATIVE FUNERALCARE,30808R                   ,MKS ENVIRONMENTAL SERVICES,Funeral Expenses,Environmental and Regulatory Services
Swale Borough Council,29UM,28/02/2018,1157346,1425.00,THE OYSTER PARTNERSHIP,05020374                 ,PLANNING SERVICES,Agency/Contract Staff,Planning and Development Services
Swale Borough Council,29UM,28/02/2018,1157445,250.00,THE SITTINGBOURNE SOCIETY,                         ,ECONOMY & COMMUNITIES,Grants & Subscriptions,Central Services to the Public
Swale Borough Council,29UM,28/02/2018,1157391,3000.00,TROWERS & HAMLIN,OC337852                 ,LEISURE & OPEN SPACES,Consultancy/Specialist Advice,Cultural and Related Services
Swale Borough Council,29UM,28/02/2018,1157401,1435.00,TUNSTALL PARISH COUNCIL,                         ,ECONOMY & COMMUNITIES,Grants & Subscriptions,Central Services to the Public
Swale Borough Council,29UM,28/02/2018,1157385,1093.75,VIVID RESOURCING LIMITED,06459262                 ,PLANNING SERVICES,Agency/Contract Staff,Internal Trading Cost Centres
Swale Borough Council,29UM,28/02/2018,1157434,2587.50,WESTCOUNTRY GROUP,4314613                  ,REVENUE SERVICES,Fees and Services,Central Services to the Public
Swale Borough Council,29UM,28/02/2018,1157418,144.11,WHISTL UK LIMITED,04417047                 ,REVENUE SERVICES,Postage,Central Services to the Public
Swale Borough Council,29UM,28/02/2018,1157418,72.05,WHISTL UK LIMITED,04417047                 ,REVENUE SERVICES,Postage,Housing
Swale Borough Council,29UM,28/02/2018,1157418,55.09,WHISTL UK LIMITED,04417047                 ,PROPERTY SERVICES,Postage,Holding Codes
Swale Borough Council,29UM,28/02/2018,1157419,597.56,WHISTL UK LIMITED,04417047                 ,REVENUE SERVICES,Postage,Central Services to the Public
Swale Borough Council,29UM,28/02/2018,1157419,298.78,WHISTL UK LIMITED,04417047                 ,REVENUE SERVICES,Postage,Housing
Swale Borough Council,29UM,28/02/2018,1157419,13.39,WHISTL UK LIMITED,04417047                 ,CAR PARKS,Postage,Internal Trading Cost Centres
Swale Borough Council,29UM,28/02/2018,1157419,136.53,WHISTL UK LIMITED,04417047                 ,PROPERTY SERVICES,Postage,Holding Codes
Swale Borough Council,29UM,28/02/2018,1157419,190.04,WHISTL UK LIMITED,04417047                 ,DEMOCRATIC & ELECTORAL SERVICES,Postage,Central Services to the Public
Swale Borough Council,29UM,28/02/2018,1156911,289.00,WILLOW TREE HOME SOLUTIONS LTD,                         ,HOUSING SERVICES,Staying Put small repairs (contractors),Housing
Swale Borough Council,29UM,28/02/2018,1156948,286.00,WILLOW TREE HOME SOLUTIONS LTD,                         ,HOUSING SERVICES,Staying Put small repairs (contractors),Housing
Swale Borough Council,29UM,28/02/2018,1157066,500.00,WILLOW TREE HOME SOLUTIONS LTD,                         ,HOUSING SERVICES,Staying Put small repairs (contractors),Housing
Swale Borough Council,29UM,28/02/2018,1157096,355.00,WILLOW TREE HOME SOLUTIONS LTD,                         ,HOUSING SERVICES,Staying Put small repairs (contractors),Housing
Swale Borough Council,29UM,28/02/2018,1157159,500.00,WILLOW TREE HOME SOLUTIONS LTD,                         ,HOUSING SERVICES,Staying Put small repairs (contractors),Housing
